bitfinex/quotes_SOLUSD_20241113
["timestamp","ask_amount","ask_price","bid_price","bid_amount"]
[1731520311359,22.33174347,218.49,218.42,3.6626]
[1731520311554,22.33174347,218.48,218.41,22.33174347]
[1731520311735,22.33174347,218.48,218.4,12.8203]
[1731520311736,22.33174347,218.42,218.35,31.49104347]
[1731520311947,22.33174347,218.41,218.35,9.1593]
[1731520312131,22.33174347,218.42,218.35,35.15484347]
[1731520312353,22.33174347,218.45,218.38,22.33174347]
[1731520312539,23.776884,218.49,218.35,12.8231]
[1731520312738,0.12549,218.48,218.35,12.8231]
[1731520313250,0.12549,218.48,218.35,9.1593]
[1731520313251,0.12549,218.46,218.35,9.1593]
[1731520313552,26.90894347,218.47,218.4,22.33174347]
[1731520313756,26.90864347,218.49,218.42,22.33174347]
[1731520314060,4.5757,218.55,218.48,22.33174347]
[1731520314233,26.90744347,218.55,218.48,22.33174347]
[1731520314434,22.33174347,218.54,218.46,22.33174347]
[1731520314858,22.33174347,218.53,218.46,22.33174347]
[1731520315069,22.33174347,218.51,218.44,22.33174347]
[1731520315241,22.33174347,218.52,218.44,22.33174347]
[1731520315555,22.33174347,218.53,218.45,22.33174347]
[1731520316141,22.33174347,218.47,218.41,9.157]
[1731520316540,22.33174347,218.48,218.41,31.48874347]
[1731520316751,0.12549,218.54,218.41,31.48874347]
[1731520316752,22.33174347,218.49,218.41,31.48874347]
[1731520317061,22.33174347,218.48,218.41,35.15154347]
[1731520317266,22.33174347,218.47,218.41,12.8198]
[1731520317558,4.576,218.53,218.41,12.8198]
[1731520317559,22.33174347,218.5,218.43,22.33174347]
[1731520317739,22.33174347,218.46,218.41,9.157]
[1731520317933,0.12549,218.52,218.38,22.33174347]
[1731520317934,22.33174347,218.45,218.38,22.33174347]
[1731520318244,22.33174347,218.45,218.37,22.33174347]
[1731520318441,22.33174347,218.45,218.36,9.1588]
[1731520318442,22.33174347,218.46,218.39,22.33174347]
[1731520318653,22.33174347,218.48,218.41,22.33174347]
[1731520319364,26.90854347,218.5,218.42,35.15094347]
[1731520319542,22.33174347,218.48,218.42,12.8192]
[1731520319939,22.33174347,218.49,218.42,35.15094347]
[1731520320162,22.33174347,218.51,218.43,22.33174347]
[1731520320360,22.33174347,218.51,218.42,12.8192]
[1731520320361,22.33174347,218.48,218.42,9.1566]
[1731520320553,22.33174347,218.47,218.39,22.33174347]
[1731520320749,22.33174347,218.42,218.35,25.99554347]
[1731520321355,22.33174347,218.43,218.35,35.15514347]
[1731520321550,22.33174347,218.46,218.39,22.33174347]
[1731520321747,26.90834347,218.5,218.42,22.33174347]
[1731520322054,26.90834347,218.5,218.35,53.47434347]
[1731520322055,4.5766,218.5,218.4,22.33174347]
[1731520322261,22.33174347,218.48,218.41,22.33174347]
[1731520322767,22.33174347,218.47,218.4,35.15174347]
[1731520323059,4.5771,218.48,218.41,22.33174347]
[1731520323446,26.90884347,218.48,218.41,22.33174347]
[1731520323837,16.11406719,218.56,218.47,22.33174347]
[1731520323838,11.68216719,218.56,218.47,22.33174347]
[1731520324141,22.33174347,218.59,218.51,22.33174347]
[1731520324657,22.33174347,218.55,218.48,22.33174347]
[1731520325038,4.5746,218.6,218.46,22.33174347]
[1731520325039,22.33174347,218.53,218.46,22.33174347]
[1731520325854,22.33174347,218.53,218.45,22.33174347]
[1731520326044,26.90784347,218.53,218.45,25.99374347]
[1731520326365,22.33174347,218.52,218.45,25.99384347]
[1731520326656,22.33174347,218.47,218.41,3.6626]
[1731520326866,22.33174347,218.46,218.39,12.8206]
[1731520327076,22.33174347,218.47,218.39,35.15234347]
[1731520327250,23.776884,218.52,218.44,22.33174347]
[1731520327471,8.4389,218.55,218.39,31.1364]
[1731520327472,13.0146,218.55,218.39,31.1364]
[1731520327767,22.33174347,218.49,218.41,22.33174347]
[1731520328145,22.33174347,218.49,218.42,35.15094347]
[1731520328576,22.45723347,218.46,218.38,9.1582]
[1731520328870,22.33174347,218.45,218.38,9.1582]
[1731520329165,23.902374,218.52,218.38,9.1582]
[1731520329166,22.33174347,218.44,218.38,9.1582]
[1731520329344,22.33174347,218.43,218.38,9.1582]
[1731520329544,22.33174347,218.45,218.38,9.1582]
[1731520329744,22.33174347,218.45,218.38,12.8215]
[1731520329944,22.33174347,218.45,218.38,35.15324347]
[1731520330467,22.33174347,218.43,218.38,12.8215]
[1731520330654,22.33174347,218.42,218.38,9.1582]
[1731520330855,22.33174347,218.41,218.34,22.33174347]
[1731520331071,22.33174347,218.43,218.36,22.33174347]
[1731520331363,22.33174347,218.43,218.35,22.33174347]
[1731520331753,22.33174347,218.43,218.36,3.6636]
[1731520331955,22.33174347,218.43,218.36,12.8227]
[1731520332662,22.33174347,218.48,218.4,22.33174347]
[1731520332869,22.33174347,218.47,218.4,22.33174347]
[1731520333361,22.33174347,218.44,218.37,22.33174347]
[1731520333866,22.33174347,218.42,218.36,12.8227]
[1731520334252,22.33174347,218.43,218.36,35.15444347]
[1731520334770,22.33174347,218.42,218.36,12.8227]
[1731520334953,7.10499191,218.48,218.28,18.3247]
[1731520334954,22.33174347,218.39,218.32,12.8251]
[1731520335156,22.33174347,218.41,218.34,22.33174347]
[1731520335365,22.33174347,218.42,218.34,22.33174347]
[1731520336069,22.33174347,218.41,218.35,3.6638]
[1731520336254,22.33174347,218.41,218.35,12.8234]
[1731520336657,22.33174347,218.42,218.35,12.8234]
[1731520337264,22.33174347,218.42,218.35,31.49134347]
[1731520337472,22.33174347,218.43,218.36,22.33174347]
[1731520337659,4.5776,218.46,218.38,22.33174347]
[1731520337972,8.6397,218.5,218.35,9.1596]
[1731520337973,26.90894347,218.48,218.41,22.33174347]
[1731520338269,35.54824347,218.5,218.43,22.33174347]
[1731520338447,27.89138372,218.52,218.35,31.49134347]
[1731520338448,29.43572719,218.52,218.45,22.33174347]
[1731520338659,4.5762,218.53,218.43,22.33174347]
[1731520338660,22.33174347,218.5,218.43,22.33174347]
[1731520339274,22.33174347,218.48,218.41,22.33174347]
[1731520339570,26.90894347,218.48,218.41,25.99444347]
[1731520339769,22.33174347,218.47,218.4,35.15194347]
[1731520339971,26.90804347,218.52,218.44,22.33174347]
[1731520340171,22.33174347,218.51,218.43,22.33174347]
[1731520340572,22.33174347,218.51,218.44,22.33174347]
[1731520340759,22.33174347,218.49,218.41,22.33174347]
[1731520340968,22.33174347,218.47,218.4,35.15194347]
[1731520341276,22.33174347,218.46,218.4,12.8202]
[1731520341470,26.90914347,218.46,218.4,12.8202]
[1731520341650,22.33174347,218.47,218.4,12.8202]
[1731520342063,4.5766,218.5,218.4,9.1574]
[1731520342064,22.33174347,218.45,218.4,9.1574]
[1731520342366,50.68502747,218.52,218.44,22.33174347]
[1731520342669,0.12549,218.51,218.44,22.33174347]
[1731520342849,22.45723347,218.51,218.44,22.33174347]
[1731520343047,22.33174347,218.5,218.43,22.33174347]
[1731520343249,23.776884,218.48,218.41,22.33174347]
[1731520343456,50.81151747,218.47,218.4,31.48914347]
[1731520343672,50.81151747,218.47,218.4,35.15214347]
[1731520344050,22.33174347,218.49,218.41,22.33174347]
[1731520344254,7.11093696,218.52,218.4,12.8204]
[1731520344255,4.5764,218.51,218.44,22.33174347]
[1731520344452,26.90814347,218.51,218.44,22.33174347]
[1731520345375,22.33174347,218.49,218.42,22.33174347]
[1731520345561,22.33174347,218.49,218.41,22.33174347]
[1731520345885,22.33174347,218.5,218.43,22.33174347]
[1731520346051,4.5764,218.51,218.45,22.33174347]
[1731520346255,4.5764,218.51,218.44,22.33174347]
[1731520346478,4.5764,218.51,218.44,25.99394347]
[1731520346959,22.33174347,218.5,218.44,3.6622]
[1731520347373,22.33174347,218.49,218.43,12.8186]
[1731520347583,4.5764,218.51,218.43,12.8186]
[1731520347584,4.5764,218.51,218.44,22.33174347]
[1731520347780,26.90814347,218.51,218.44,22.33174347]
[1731520348685,22.33174347,218.51,218.44,22.33174347]
[1731520348984,26.90824347,218.51,218.44,35.14974347]
[1731520349189,22.33174347,218.54,218.47,22.33174347]
[1731520349482,4.5756,218.55,218.48,22.33174347]
[1731520349656,22.33174347,218.56,218.48,22.33174347]
[1731520349856,35.47054347,218.57,218.5,22.33174347]
[1731520350076,22.33174347,218.58,218.51,22.33174347]
[1731520350288,22.43174347,218.68,218.44,12.818]
[1731520350289,22.33174347,218.6,218.53,22.33174347]
[1731520350780,22.33174347,218.59,218.52,22.33174347]
[1731520350957,22.33174347,218.56,218.48,22.33174347]
[1731520351162,22.33174347,218.55,218.48,22.33174347]
[1731520351472,4.5743,218.61,218.48,22.33174347]
[1731520351473,22.33174347,218.56,218.48,22.33174347]
[1731520352002,22.33174347,218.49,218.42,22.33174347]
[1731520352181,22.33174347,218.49,218.39,12.921]
[1731520352182,22.33174347,218.5,218.43,22.33174347]
[1731520352859,22.33174347,218.5,218.44,12.8181]
[1731520353064,22.33174347,218.45,218.34,12.824]
[1731520353259,22.33174347,218.45,218.37,22.33174347]
[1731520353770,22.33174347,218.42,218.34,12.824]
[1731520353967,23.902374,218.44,218.36,22.33174347]
[1731520353968,22.33174347,218.43,218.36,22.33174347]
[1731520354164,46.23411747,218.44,218.37,22.33174347]
[1731520354386,22.33174347,218.43,218.36,22.33174347]
[1731520354676,22.33174347,218.43,218.28,27.56460594]
[1731520354677,22.33174347,218.42,218.35,22.33174347]
[1731520354876,22.33174347,218.43,218.36,25.99524347]
[1731520355082,28.480374,218.44,218.38,22.33174347]
[1731520356077,23.902374,218.44,218.39,22.33174347]
[1731520356293,28.480074,218.45,218.39,22.33174347]
[1731520356471,22.33174347,218.44,218.37,22.33174347]
[1731520356860,46.23411747,218.43,218.36,25.99524347]
[1731520357064,23.902374,218.43,218.38,22.33174347]
[1731520357665,23.902374,218.43,218.28,27.56460594]
[1731520357666,22.45723347,218.39,218.31,31.49294347]
[1731520357857,28.355084,218.43,218.31,31.49294347]
[1731520357858,22.33174347,218.42,218.35,22.33174347]
[1731520358079,46.10862747,218.43,218.31,9.1612]
[1731520358379,0.12549,218.42,218.36,22.33174347]
[1731520358583,0.12549,218.42,218.31,9.1612]
[1731520358584,22.45723347,218.42,218.35,22.33174347]
[1731520358883,11.6422,218.49,218.41,22.33174347]
[1731520358884,22.33174347,218.49,218.41,22.33174347]
[1731520359094,24.5092,218.53,218.45,22.33174347]
[1731520359386,30.92474347,218.51,218.38,21.4156]
[1731520359562,30.92474347,218.51,218.45,3.6621]
[1731520359768,22.33174347,218.56,218.49,22.33174347]
[1731520359970,8.7321,218.57,218.51,22.33174347]
[1731520360362,31.06384347,218.57,218.49,22.33174347]
[1731520360562,35.63914347,218.57,218.49,22.33174347]
[1731520360764,35.63914347,218.57,218.45,12.8175]
[1731520360765,0.12549,218.54,218.48,22.33174347]
[1731520360976,22.33174347,218.56,218.49,22.33174347]
[1731520361465,0.12549,218.55,218.5,22.33174347]
[1731520361685,0.12549,218.55,218.49,22.33174347]
[1731520361897,4.5754,218.56,218.49,22.33174347]
[1731520361898,22.33174347,218.56,218.49,22.33174347]
[1731520362088,22.33174347,218.59,218.52,22.33174347]
[1731520362382,22.33174347,218.57,218.5,22.33174347]
[1731520362578,46.10862747,218.56,218.49,22.33174347]
[1731520362791,23.776884,218.56,218.48,22.33174347]
[1731520362994,23.776884,218.56,218.5,22.33174347]
[1731520363294,23.776884,218.56,218.48,22.33174347]
[1731520363295,50.68402747,218.56,218.48,22.33174347]
[1731520363465,28.352284,218.56,218.5,22.33174347]
[1731520363666,28.352284,218.56,218.49,22.33174347]
[1731520363967,28.352284,218.56,218.5,22.33174347]
[1731520364670,50.68402747,218.56,218.49,3.6614]
[1731520364862,22.33174347,218.56,218.48,25.99334347]
[1731520365181,4.9998735,218.7,218.55,44.76348694]
[1731520365489,0.4272735,218.7,218.64,22.33174347]
[1731520365675,0.4272735,218.7,218.65,22.33174347]
[1731520366391,0.4272735,218.7,218.67,22.33174347]
[1731520367263,0.4272735,218.7,218.66,22.33174347]
[1731520367665,0.4272735,218.7,218.68,22.33174347]
[1731520368076,0.4272735,218.7,218.69,22.33174347]
[1731520369181,0.4272735,218.7,218.68,22.33174347]
[1731520369493,0.4272735,218.7,218.66,25.99024347]
[1731520369703,0.4272735,218.7,218.67,22.33174347]
[1731520369870,0.4272735,218.7,218.68,22.33174347]
[1731520370188,0.4272735,218.7,218.69,22.33174347]
[1731520370988,7.0972056,218.82,218.69,22.33174347]
[1731520371175,0.4272735,218.92,218.81,22.33174347]
[1731520371381,4.9951735,218.92,218.86,22.33174347]
[1731520371574,27.32691697,218.92,218.85,22.33174347]
[1731520371880,0.4272735,218.92,218.82,12.7957]
[1731520372069,0.4272735,218.92,218.89,22.33174347]
[1731520372278,0.4272735,218.92,218.82,12.7957]
[1731520372279,0.4272735,218.92,218.87,22.33174347]
[1731520372482,0.4272735,218.92,218.88,22.33174347]
[1731520373185,0.4272735,218.92,218.9,22.33174347]
[1731520374397,0.4272735,218.92,218.91,22.33174347]
[1731520374595,0.4272735,218.92,218.86,22.33174347]
[1731520374779,0.12549,218.91,218.8,9.1407]
[1731520377274,23.776884,218.84,218.78,22.33174347]
[1731520377796,23.776884,218.84,218.79,22.33174347]
[1731520377966,23.776884,218.84,218.8,22.33174347]
[1731520378982,23.776884,218.84,218.79,22.33174347]
[1731520379193,23.776884,218.84,218.8,22.33174347]
[1731520379508,22.33174347,218.81,218.7,9.1447]
[1731520379794,22.33174347,218.8,218.73,22.33174347]
[1731520380099,22.33174347,218.8,218.72,22.33174347]
[1731520380275,22.45723347,218.83,218.76,22.33174347]
[1731520380467,23.776884,218.82,218.76,22.33174347]
[1731520380669,46.10862747,218.82,218.75,22.33174347]
[1731520380975,28.346884,218.82,218.76,22.33174347]
[1731520381279,28.346884,218.82,218.77,22.33174347]
[1731520381471,28.346884,218.82,218.75,22.33174347]
[1731520381671,28.346884,218.82,218.76,22.33174347]
[1731520382895,22.33174347,218.81,218.74,22.33174347]
[1731520383100,22.45723347,218.78,218.71,22.33174347]
[1731520383396,28.346884,218.82,218.67,16.0445]
[1731520383575,28.346884,218.82,218.67,12.8045]
[1731520384088,0.12549,218.81,218.67,12.8045]
[1731520384287,22.33174347,218.8,218.73,22.33174347]
[1731520384490,23.776884,218.79,218.73,22.33174347]
[1731520384985,46.10862747,218.79,218.72,22.33174347]
[1731520385192,53.20333209,218.79,218.72,22.33174347]
[1731520385383,23.776884,218.79,218.74,22.33174347]
[1731520385684,4.5706,218.79,218.74,22.33174347]
[1731520385884,4.5706,218.79,218.75,22.33174347]
[1731520386271,4.5706,218.79,218.74,22.33174347]
[1731520386804,28.346184,218.85,218.78,22.33174347]
[1731520386993,28.346184,218.85,218.81,22.33174347]
[1731520387177,28.346184,218.85,218.83,22.33174347]
[1731520387373,8.3894,218.87,218.84,22.33174347]
[1731520387686,8.3894,218.87,218.85,22.33174347]
[1731520387889,22.75901697,218.92,218.86,22.33174347]
[1731520387890,4.9952735,218.92,218.86,22.33174347]
[1731520388078,4.9952735,218.92,218.79,22.33174347]
[1731520388079,0.4272735,218.92,218.9,22.33174347]
[1731520388266,4.9951735,218.92,218.88,22.33174347]
[1731520388469,27.32691697,218.92,218.84,22.33174347]
[1731520388676,0.12549,218.89,218.8,3.6561]
[1731520388894,4.5682,218.9,218.84,22.33174347]
[1731520389280,0.12549,218.89,218.8,12.7968]
[1731520389484,22.45723347,218.89,218.82,22.33174347]
[1731520389976,23.776884,218.88,218.82,22.33174347]
[1731520390289,22.33174347,218.85,218.78,22.33174347]
[1731520390596,23.776884,218.84,218.8,22.33174347]
[1731520390894,23.776884,218.87,218.81,22.33174347]
[1731520391073,22.33174347,218.91,218.84,22.33174347]
[1731520391275,22.75901697,218.92,218.85,22.33174347]
[1731520391488,22.45723347,218.91,218.84,22.33174347]
[1731520391672,22.45723347,218.91,218.75,9.1424]
[1731520391673,22.33174347,218.87,218.8,22.33174347]
[1731520391870,22.33174347,218.88,218.81,22.33174347]
[1731520392087,0.12549,218.88,218.84,22.33174347]
[1731520392389,0.12549,218.88,218.74,12.8005]
[1731520393493,23.776884,218.89,218.75,22.33174347]
[1731520393494,46.23411747,218.82,218.75,22.33174347]
[1731520393791,46.10862747,218.8,218.72,22.33174347]
[1731520394086,46.10862747,218.8,218.67,3.6584]
[1731520394087,23.776884,218.8,218.74,22.33174347]
[1731520394272,4.5702,218.81,218.75,22.33174347]
[1731520394589,23.776884,218.78,218.7,9.1449]
[1731520394893,23.776884,218.78,218.75,22.33174347]
[1731520395089,23.776884,218.78,218.73,22.33174347]
[1731520395299,23.776884,218.8,218.74,22.33174347]
[1731520395680,0.12549,218.79,218.74,22.33174347]
[1731520395880,8.104,218.82,218.78,22.33174347]
[1731520396076,8.2241,218.87,218.81,22.33174347]
[1731520396390,8.2241,218.87,218.69,0.2]
[1731520396391,12.7932,218.87,218.83,22.33174347]
[1731520396696,12.7932,218.87,218.8,3.6562]
[1731520396697,4.5691,218.87,218.84,22.33174347]
[1731520396907,19.9006735,218.92,218.86,22.33174347]
[1731520397102,0.4272735,218.92,218.89,22.33174347]
[1731520397401,0.4272735,218.92,218.88,22.33174347]
[1731520397795,0.4272735,218.92,218.9,22.33174347]
[1731520397996,0.4272735,218.92,218.91,22.33174347]
[1731520398196,0.4272735,218.92,218.9,22.33174347]
[1731520398699,0.4272735,218.92,218.91,22.33174347]
[1731520400892,0.4272735,218.92,218.9,25.98614347]
[1731520401379,0.4272735,218.92,218.9,3.6544]
[1731520401974,0.4272735,218.92,218.89,9.137]
[1731520402388,22.75901697,218.92,218.84,31.47044347]
[1731520402687,22.33174347,218.89,218.84,9.1387]
[1731520402881,22.33174347,218.9,218.84,9.1387]
[1731520403089,22.33174347,218.87,218.81,3.6561]
[1731520403282,22.33174347,218.88,218.81,3.6561]
[1731520403485,7.9021,218.86,218.81,3.6561]
[1731520403687,22.33174347,218.84,218.78,12.7978]
[1731520404598,30.23384347,218.86,218.79,22.33174347]
[1731520404789,34.80294347,218.86,218.79,22.33174347]
[1731520404999,34.80294347,218.86,218.78,35.12954347]
[1731520405182,30.23384347,218.86,218.79,22.33174347]
[1731520405589,30.23384347,218.86,218.78,9.1412]
[1731520405590,22.33174347,218.84,218.78,9.1412]
[1731520405999,22.33174347,218.85,218.78,35.12954347]
[1731520406802,22.33174347,218.84,218.78,9.1412]
[1731520407112,22.33174347,218.89,218.81,22.33174347]
[1731520407306,13.1738735,218.92,218.86,22.33174347]
[1731520407534,8.6058735,218.92,218.86,22.33174347]
[1731520407809,13.1737735,218.92,218.78,31.081]
[1731520408307,8.6058735,218.92,218.87,22.33174347]
[1731520408563,8.6058735,218.92,218.86,25.98694347]
[1731520408687,8.6058735,218.92,218.86,3.6552]
[1731520409192,8.6058735,218.92,218.85,9.1386]
[1731520409193,22.33174347,218.91,218.85,9.1386]
[1731520409381,13.1737735,218.92,218.89,22.33174347]
[1731520409382,0.4272735,218.92,218.89,22.33174347]
[1731520409584,0.4272735,218.92,218.91,22.33174347]
[1731520410495,0.4272735,218.92,218.9,22.33174347]
[1731520410794,0.4272735,218.92,218.91,22.33174347]
[1731520411382,0.4272735,218.92,218.91,22.13344347]
[1731520413408,0.4272735,218.92,218.9,25.98624347]
[1731520414110,0.4272735,218.92,218.91,22.33174347]
[1731520417695,0.4272735,218.92,218.91,25.98614347]
[1731520417922,7.6557,219.03,218.91,25.98614347]
[1731520418102,22.33174347,219.05,218.97,22.33174347]
[1731520418289,4.5647,219.07,218.91,31.0628]
[1731520418290,29.41552185,219.03,218.96,22.33174347]
[1731520418711,7.08377838,219.03,218.97,22.33174347]
[1731520418890,11.64937838,219.03,218.97,22.33174347]
[1731520419291,11.64937838,219.03,218.97,25.98514347]
[1731520419888,4.5656,219.03,218.97,25.98514347]
[1731520420717,22.33174347,219.01,218.93,22.33174347]
[1731520420927,23.902374,219.0,218.93,22.33174347]
[1731520421415,23.776884,219.0,218.93,22.33174347]
[1731520421994,28.343184,219.0,218.93,25.98574347]
[1731520422395,28.343184,219.0,218.94,22.33174347]
[1731520422584,28.343184,219.0,218.95,22.33174347]
[1731520422784,28.343184,219.0,218.96,22.33174347]
[1731520423001,7.08402765,219.06,218.99,22.33174347]
[1731520423291,23.776884,219.05,218.99,22.33174347]
[1731520423811,0.12549,219.05,218.99,22.33174347]
[1731520423994,4.69059,219.05,218.99,22.33174347]
[1731520424195,4.69059,219.05,219.01,22.33174347]
[1731520424392,4.69059,219.05,219.0,22.33174347]
[1731520424603,4.69059,219.05,218.99,22.33174347]
[1731520425007,23.776884,219.04,218.99,22.33174347]
[1731520425312,22.33174347,219.03,218.96,22.33174347]
[1731520426108,46.23411747,219.02,218.94,22.33174347]
[1731520426319,23.776884,219.02,218.96,22.33174347]
[1731520426701,46.10862747,219.02,218.95,22.33174347]
[1731520427037,23.776884,219.02,218.96,22.33174347]
[1731520427309,4.566,219.01,218.95,22.33174347]
[1731520427691,4.566,219.01,218.94,22.33174347]
[1731520428223,4.566,219.01,218.95,22.33174347]
[1731520430513,26.89774347,219.01,218.94,22.33174347]
[1731520430721,4.566,219.01,218.98,22.33174347]
[1731520430914,22.03092563,219.25,218.94,3.6539]
[1731520430915,7.6557,219.08,219.0,22.33174347]
[1731520431218,7.6557,219.08,219.04,22.33174347]
[1731520431918,22.33174347,219.06,218.99,22.33174347]
[1731520432094,0.12549,219.07,219.01,22.33174347]
[1731520432298,0.12549,219.07,218.94,12.7888]
[1731520432299,0.12549,219.07,219.02,22.33174347]
[1731520432694,23.902374,219.07,219.02,22.33174347]
[1731520432909,4.5649,219.06,219.02,22.33174347]
[1731520433102,7.6557,219.08,219.03,22.33174347]
[1731520433411,12.2203,219.08,219.02,22.33174347]
[1731520433796,22.33174347,219.07,219.0,35.11704347]
[1731520434110,22.33174347,219.06,218.99,22.33174347]
[1731520434296,22.45723347,219.07,219.0,22.33174347]
[1731520434491,23.776884,219.06,219.01,22.33174347]
[1731520434896,23.902374,219.07,219.01,22.33174347]
[1731520435096,4.5649,219.06,219.01,22.33174347]
[1731520435904,4.5649,219.06,219.0,25.98464347]
[1731520436206,4.5649,219.07,219.01,22.33174347]
[1731520438710,26.89664347,219.07,219.01,22.33174347]
[1731520439019,4.5649,219.07,219.01,13.73762981]
[1731520440526,4.5649,219.07,219.0,3.6528]
[1731520440527,7.6557,219.08,219.05,13.73762981]
[1731520440821,13.73762981,219.1,219.04,13.73762981]
[1731520441004,18.30152981,219.11,219.04,13.73762981]
[1731520441208,4.5639,219.11,219.05,13.73762981]
[1731520441401,18.30152981,219.11,219.04,13.73762981]
[1731520441607,25.37751728,219.11,219.05,13.73762981]
[1731520442004,25.37751728,219.11,219.0,12.7852]
[1731520442005,13.86311981,219.09,219.02,13.73762981]
[1731520442215,13.73762981,219.08,219.02,13.73762981]
[1731520442410,7.07598747,219.11,219.07,13.73762981]
[1731520442610,4.5639,219.12,219.09,13.73762981]
[1731520443136,0.4272735,219.13,219.09,13.73762981]
[1731520443137,4.9907735,219.13,219.09,13.73762981]
[1731520443423,0.4272735,219.13,219.09,13.73762981]
[1731520443809,0.4272735,219.13,219.11,13.73762981]
[1731520444005,0.4272735,219.13,219.1,13.73762981]
[1731520444622,4.9907735,219.13,219.1,13.73762981]
[1731520444828,0.4272735,219.13,219.1,13.73762981]
[1731520446213,4.9907735,219.13,219.08,13.73762981]
[1731520446406,4.9907735,219.13,219.09,13.73762981]
[1731520446607,0.12549,219.12,219.06,13.73762981]
[1731520446814,13.73762981,219.08,219.01,3.6526]
[1731520447036,23.776884,219.12,219.02,13.73762981]
[1731520447210,0.12549,219.11,219.02,13.73762981]
[1731520447432,0.12549,219.11,219.01,17.39022981]
[1731520447433,13.73762981,219.08,219.01,17.39022981]
[1731520447618,13.73762981,219.08,219.01,13.73762981]
[1731520447808,0.12549,219.11,218.9,32.01022981]
[1731520447809,13.73762981,219.02,218.96,3.6534]
[1731520448010,13.73762981,219.02,218.95,13.73762981]
[1731520448232,15.9763,219.08,218.91,12.7905]
[1731520448233,13.73762981,219.04,218.96,13.73762981]
[1731520448423,13.73762981,219.04,218.97,13.73762981]
[1731520448619,13.73762981,219.04,218.96,13.73762981]
[1731520448816,23.902374,219.03,218.91,12.7905]
[1731520449115,23.902374,219.03,218.98,21.98409629]
[1731520449325,21.98409629,219.06,218.99,21.98409629]
[1731520449548,26.54859629,219.08,219.01,21.98409629]
[1731520449718,23.902374,219.06,218.98,21.98409629]
[1731520449930,21.98409629,219.03,218.96,21.98409629]
[1731520450230,21.98409629,219.01,218.94,21.98409629]
[1731520450540,21.98409629,218.99,218.92,21.98409629]
[1731520450708,21.98409629,218.98,218.92,21.98409629]
[1731520450905,21.98409629,218.96,218.9,9.1362]
[1731520451124,21.98409629,218.97,218.9,34.77489629]
[1731520451319,21.98409629,219.01,218.94,21.98409629]
[1731520451624,21.98409629,218.96,218.91,12.7904]
[1731520451828,23.902374,219.01,218.91,9.1361]
[1731520452531,23.902374,219.01,218.91,12.7905]
[1731520452922,21.98409629,218.92,218.86,9.138]
[1731520453119,21.98409629,218.87,218.81,21.98409629]
[1731520453440,21.98409629,218.88,218.82,12.7957]
[1731520453735,4.69249,218.96,218.82,12.7957]
[1731520453940,23.902374,218.95,218.82,12.7957]
[1731520454816,21.98409629,218.88,218.82,12.7957]
[1731520455216,21.98409629,218.9,218.83,21.98409629]
[1731520455925,21.98409629,218.89,218.84,3.6556]
[1731520456124,21.98409629,218.9,218.84,3.6556]
[1731520456525,21.98409629,218.89,218.84,3.6556]
[1731520456913,21.98409629,218.87,218.82,9.1398]
[1731520457130,26.55239629,218.9,218.82,34.77979629]
[1731520457432,21.98409629,218.89,218.82,34.77979629]
[1731520457636,21.98409629,218.89,218.8,20.7661]
[1731520457637,21.98409629,218.85,218.8,20.7661]
[1731520457838,21.98409629,218.85,218.78,12.7981]
[1731520458140,21.98409629,218.85,218.78,31.12559629]
[1731520458426,21.98409629,218.86,218.79,21.98409629]
[1731520458629,21.98409629,218.85,218.78,34.78219629]
[1731520458847,21.98409629,218.84,218.78,12.7981]
[1731520459213,21.98409629,218.85,218.78,34.78219629]
[1731520459423,21.98409629,218.85,218.78,9.1415]
[1731520459725,21.98409629,218.84,218.78,12.7981]
[1731520460428,21.98409629,218.85,218.78,34.78219629]
[1731520460636,21.98409629,218.84,218.78,12.7981]
[1731520461031,21.98409629,218.83,218.78,9.1415]
[1731520461425,21.98409629,218.84,218.78,9.1415]
[1731520461728,21.98409629,218.85,218.78,31.12559629]
[1731520461929,21.98409629,218.84,218.78,9.1415]
[1731520462136,27.54875761,218.9,218.78,34.78219629]
[1731520462137,4.69399,218.89,218.78,34.78219629]
[1731520462312,21.98409629,218.85,218.78,34.78219629]
[1731520463335,26.55339629,218.85,218.78,34.78219629]
[1731520463531,4.5693,218.85,218.8,21.98409629]
[1731520464039,4.5693,218.85,218.77,21.98409629]
[1731520464040,45.76098029,218.84,218.77,21.98409629]
[1731520465130,0.12549,218.83,218.77,21.98409629]
[1731520465334,26.55379629,218.83,218.77,21.98409629]
[1731520465528,19.37090761,218.86,218.82,21.98409629]
[1731520466033,7.08530761,218.86,218.76,19.7169]
[1731520466239,12.2024,218.92,218.76,19.7169]
[1731520466428,0.12549,218.91,218.77,20.0]
[1731520466630,12.2024,218.92,218.77,20.0]
[1731520467340,21.98409629,218.91,218.84,21.98409629]